[Event "1000GM Spring GM-B 2024"]
[Site "New York"]
[Date "2024.03.30"]
[Round "5.5"]
[White "Luo, Terry"]
[Black "Sinha, Sahil"]
[Result "1/2-1/2"]
[ECO "E08"]
[WhiteElo "2333"]
[BlackElo "2299"]
[Annotator "RC"]
[PlyCount "46"]
[EventDate "2024.03.26"]
[EventType "tourn"]
[EventCountry "USA"]
[SourceTitle "playchess.com"]
[Source "ChessBase"]
[SourceQuality "1"]
[TimeControl "5400+30"]

1. d4 {[%emt 0:00:01]} Nf6 {[%emt 0:00:08]} 2. c4 {[%emt 0:00:05]} e6 {[%emt 0:00:05]} 3. Nf3 {[%emt 0:00:01]} d5 {[%emt 0:01:08]} 4. g3 {[%emt 0:00:04]} Bb4+ {[%emt 0:00:09]} 5. Bd2 {[%emt 0:00:05]} Be7 {[%emt 0:00:04]} 6. Bg2 {[%emt 0:00:02]} O-O {[%emt 0:00:14]} 7. O-O {[%emt 0:00:07]} Nbd7 {[%emt 0:00:49]} 8. Qc2 {[%emt 0:00:13]} Ne4 {[%emt 0:00:23]} 9. Bf4 {[%emt 0:01:32]} c6 {[%emt 0:00:24]} 10. Nc3 {[%emt 0:00:04]} f5 {[%emt 0:05:06]} 11. Rad1 {[%emt 0:01:40]} g5 {[%emt 0:05:47]} 12. Bc1 {[%emt 0:00:07]} Bf6 {[%emt 0:01:54]} 13. e3 {[%emt 0:09:50]} Qe7 {[%emt 0:01:30]} 14. b3 {[%emt 0:08:57]} b6 {[%emt 0:02:03]} 15. Bb2 {[%emt 0:00:18]} Bb7 {[%emt 0:03:13]} 16. Ne2 {[%emt 0:17:21]} Bg7 {[%emt 0:04:25]} 17. Nc1 {[%emt 0:00:59]} Rac8 {[%emt 0:14:19]} 18. Nd3 {[%emt 0:01:27]} c5 {[%emt 0:03:20]} 19. dxc5 {[%emt 0:05:47]} dxc4 {[%emt 0:00:35]} 20. Bxg7 {[%emt 0:51:50]} Qxg7 {[%emt 0:54:54]} 21. Qxc4 {[%emt 0:00:30]} Ndxc5 {[%emt 0:00:30]} 22. Nxc5 Nxc5 23. b4 {[%emt 0:01:00]} Ba6 {[%emt 0:01:00]} 1/2-1/2

[Event "1000GM Spring GM-B 2024"]
[Site "New York"]
[Date "2024.03.30"]
[Round "6.1"]
[White "Eidelman, Gabriel"]
[Black "Sinha, Sahil"]
[Result "1-0"]
[ECO "B69"]
[WhiteElo "2374"]
[BlackElo "2299"]
[Annotator "RC"]
[PlyCount "161"]
[EventDate "2024.03.26"]
[EventType "tourn"]
[EventCountry "USA"]
[SourceTitle "playchess.com"]
[Source "ChessBase"]
[SourceQuality "1"]
[TimeControl "5400+30"]

1. e4 {[%emt 0:00:06]} c5 {[%emt 0:00:08]} 2. Nf3 {[%emt 0:00:06]} d6 {[%emt 0:00:05]} 3. d4 {[%emt 0:00:07]} cxd4 {[%emt 0:00:12]} 4. Nxd4 {[%emt 0:00:06]} Nf6 {[%emt 0:00:04]} 5. Nc3 {[%emt 0:00:07]} Nc6 {[%emt 0:00:04]} 6. Bg5 {[%emt 0:00:07]} e6 {[%emt 0:00:05]} 7. Qd2 {[%emt 0:00:08]} a6 {[%emt 0:00:14]} 8. O-O-O {[%emt 0:00:11]} Bd7 {[%emt 0:00:18]} 9. f4 {[%emt 0:00:18]} Be7 {[%emt 0:02:12]} 10. Nf3 {[%emt 0:00:16]} b5 {[%emt 0:00:31]} 11. Bxf6 {[%emt 0:00:16]} gxf6 {[%emt 0:01:30]} 12. f5 {[%emt 0:00:09]} Qb6 {[%emt 0:02:35]} 13. Kb1 {[%emt 0:00:11]} O-O-O {[%emt 0:01:08]} 14. Qh6 {[%emt 0:00:10]} Kb8 {[%emt 0:02:52]} 15. Qh5 {[%emt 0:00:09]} Rhf8 {[%emt 0:05:44]} 16. Bd3 {[%emt 1:36:03]} Qc5 {[%emt 0:04:26]} 17. Ne2 {[%emt 0:00:00]} Rc8 {[%emt 0:05:34]} 18. Nf4 {[%emt 0:00:00]} Ne5 {[%emt 0:03:49]} 19. fxe6 {[%emt 0:00:00]} Bxe6 {[%emt 0:00:42]} 20. Nxe6 {[%emt 0:00:00]} fxe6 {[%emt 0:00:07]} 21. Qxh7 {[%emt 0:00:00]} Rc7 {[%emt 0:07:00]} 22. Nxe5 {[%emt 0:00:00]} Qxe5 {[%emt 0:00:22]} 23. Qg7 {[%emt 0:00:00]} a5 {[%emt 0:04:07]} 24. Qg3 {[%emt 0:00:00]} Qxg3 {[%emt 0:13:13]} 25. hxg3 {[%emt 0:00:00]} Rc5 {[%emt 0:01:23]} 26. Rh7 {[%emt 0:00:00]} Bd8 {[%emt 0:01:35]} 27. Rd7 {[%emt 0:00:00]} Bc7 {[%emt 0:02:14]} 28. Re7 {[%emt 0:00:00]} b4 {[%emt 0:04:04]} 29. Rxe6 {[%emt 0:00:00]} Rg5 {[%emt 0:00:10]} 30. Be2 {[%emt 0:00:00]} Rxg3 {[%emt 0:01:06]} 31. Bf3 {[%emt 0:00:00]} Rg5 {[%emt 0:01:59]} 32. Re7 {[%emt 0:00:00]} Re5 {[%emt 0:02:56]} 33. Rg7 {[%emt 0:00:00]} Rg5 {[%emt 0:06:00]} 34. Re7 {[%emt 0:00:00]} Re5 {[%emt 0:01:01]} 35. Rg7 {[%emt 0:00:00]} Rg5 {[%emt 0:00:19]} 36. Rh7 {[%emt 0:00:00]} Rc5 {[%emt 0:00:12]} 37. Rd3 {[%emt 0:00:00]} Re5 {[%emt 0:03:01]} 38. a3 {[%emt 0:00:00]} f5 {[%emt 0:07:48]} 39. exf5 {[%emt 0:00:00]} Rfxf5 {[%emt 0:01:18]} 40. axb4 {[%emt 0:00:00]} axb4 {[%emt 0:00:02]} 41. Ka2 {[%emt 0:00:00]} Rf4 {[%emt 0:00:15]} 42. Kb3 {[%emt 0:00:00]} Rc5 {[%emt 0:00:26]} 43. Rd1 {[%emt 0:01:49]} Re5 {[%emt 0:06:55]} 44. Ra1 {[%emt 0:04:00]} d5 {[%emt 0:00:04]} 45. Ra4 {[%emt 0:05:41]} Re3+ {[%emt 0:04:56]} 46. Ka2 {[%emt 0:00:01]} Re5 {[%emt 0:00:36]} 47. c3 {[%emt 0:01:15]} Bd6 {[%emt 0:00:21]} 48. Ra5 {[%emt 0:01:13]} bxc3 {[%emt 0:02:33]} 49. Bxd5 {[%emt 0:00:41]} Be7 {[%emt 0:00:35]} 50. bxc3 {[%emt 0:00:35]} Kc7 {[%emt 0:00:46]} 51. Kb3 {[%emt 0:01:08]} Kb6 {[%emt 0:01:07]} 52. Ra4 {[%emt 0:00:53]} Rf1 {[%emt 0:02:17]} 53. Rh6+ {[%emt 0:00:22]} Rf6 {[%emt 0:01:16]} 54. Rxf6+ {[%emt 0:00:27]} Bxf6 {[%emt 0:00:01]} 55. Kc4 {[%emt 0:00:07]} Rg5 {[%emt 0:00:13]} 56. Rb4+ {[%emt 0:00:07]} Kc7 {[%emt 0:01:14]} 57. Rb7+ {[%emt 0:00:06]} Kd6 {[%emt 0:00:19]} 58. Rb6+ {[%emt 0:00:06]} Ke5 {[%emt 0:00:01]} 59. Re6+ {[%emt 0:01:24]} Kf5 {[%emt 0:00:02]} 60. Re3 {[%emt 0:00:13]} Rg7 {[%emt 0:00:34]} 61. Kb5 {[%emt 0:00:49]} Kf4 {[%emt 0:00:51]} 62. Rd3 {[%emt 0:01:17]} Ke5 {[%emt 0:02:21]} 63. c4 {[%emt 0:00:03]} Rd7 {[%emt 0:00:21]} 64. Re3+ {[%emt 0:00:21]} Kd4 {[%emt 0:00:17]} 65. Re4+ {[%emt 0:00:12]} Kd3 {[%emt 0:00:04]} 66. Re6 {[%emt 0:00:26]} Be7 {[%emt 0:00:47]} 67. Bc6 {[%emt 0:00:20]} Rc7 {[%emt 0:01:56]} 68. Kb6 {[%emt 0:00:05]} Bd8 {[%emt 0:00:33]} 69. Rd6+ {[%emt 0:00:05]} Kxc4 {[%emt 0:00:07]} 70. Rxd8 {[%emt 0:00:04]} Rg7 {[%emt 0:00:16]} 71. Bf3 {[%emt 0:00:08]} Rg6+ {[%emt 0:00:09]} 72. Kc7 {[%emt 0:00:06]} Rg7+ {[%emt 0:00:17]} 73. Kd6 {[%emt 0:00:05]} Kd4 {[%emt 0:00:03]} 74. Ke6+ {[%emt 0:00:05]} Ke3 {[%emt 0:00:04]} 75. Kf6 {[%emt 0:00:17]} Rg3 {[%emt 0:00:24]} 76. Kf5 {[%emt 0:00:06]} Rg7 {[%emt 0:00:24]} 77. Rd6 {[%emt 0:00:41]} Kf2 {[%emt 0:00:15]} 78. Rf6 {[%emt 0:00:11]} Rg8 {[%emt 0:00:18]} 79. Kf4 {[%emt 0:00:11]} Rg3 {[%emt 0:00:13]} 80. Be4 {[%emt 0:00:24]} Re3 {[%emt 0:01:20]} 81. g4 {[%emt 0:06:26]} 1-0

[Event "1000GM Spring GM-B 2024"]
[Site "New York"]
[Date "2024.03.30"]
[Round "6.2"]
[White "Kaliksteyn, Alexander"]
[Black "Luo, Terry"]
[Result "1/2-1/2"]
[ECO "E70"]
[WhiteElo "2356"]
[BlackElo "2333"]
[Annotator "RC"]
[PlyCount "29"]
[EventDate "2024.03.26"]
[EventType "tourn"]
[EventCountry "USA"]
[SourceTitle "playchess.com"]
[Source "ChessBase"]
[SourceQuality "1"]
[TimeControl "5400+30"]

1. c4 {[%emt 0:00:05]} Nf6 {[%emt 0:00:03]} 2. Nc3 {[%emt 0:00:19]} g6 {[%emt 0:00:04]} 3. e4 {[%emt 0:00:13]} d6 {[%emt 0:00:05]} 4. d4 {[%emt 0:00:11]} Bg7 {[%emt 0:00:03]} 5. Bd3 {[%emt 0:00:22]} O-O {[%emt 0:00:07]} 6. Nge2 {[%emt 0:00:13]} Nc6 {[%emt 0:00:06]} 7. O-O {[%emt 0:00:40]} e5 {[%emt 0:00:05]} 8. d5 {[%emt 0:00:51]} Nd4 {[%emt 0:00:05]} 9. Nxd4 {[%emt 0:02:58]} exd4 {[%emt 0:00:01]} 10. Nb5 {[%emt 0:02:02]} Re8 {[%emt 0:20:49]} 11. Re1 {[%emt 0:01:20]} Ng4 {[%emt 0:01:25]} 12. h3 {[%emt 0:00:46]} a6 {[%emt 0:00:45]} 13. hxg4 {[%emt 0:00:30]} axb5 {[%emt 0:00:01]} 14. cxb5 {[%emt 0:00:12]} Qh4 {[%emt 0:00:31]} 15. g3 {[%emt 0:02:04]} 1/2-1/2

[Event "1000GM Spring GM-B 2024"]
[Site "New York"]
[Date "2024.03.30"]
[Round "6.3"]
[White "Griffith, Kyron"]
[Black "Paragua, Mark"]
[Result "1/2-1/2"]
[ECO "B23"]
[WhiteElo "2352"]
[BlackElo "2451"]
[Annotator "RC"]
[PlyCount "91"]
[EventDate "2024.03.26"]
[EventType "tourn"]
[EventCountry "USA"]
[SourceTitle "playchess.com"]
[Source "ChessBase"]
[SourceQuality "1"]
[TimeControl "5400+30"]

1. e4 {[%emt 0:01:01]} c5 {[%emt 0:01:40]} 2. Nc3 {[%emt 0:00:07]} d6 {[%emt 0:00:12]} 3. d4 {[%emt 0:00:07]} cxd4 {[%emt 0:00:31]} 4. Qxd4 {[%emt 0:00:05]} Nc6 {[%emt 0:00:07]} 5. Qd2 {[%emt 0:00:07]} g6 {[%emt 0:00:11]} 6. b3 {[%emt 0:00:06]} Bh6 {[%emt 0:00:51]} 7. f4 {[%emt 0:00:07]} Nf6 {[%emt 0:00:18]} 8. Bb2 {[%emt 0:00:11]} O-O {[%emt 0:00:27]} 9. O-O-O {[%emt 0:00:08]} e5 {[%emt 0:18:25]} 10. g3 {[%emt 0:01:15]} Nd4 {[%emt 0:00:04]} 11. Nge2 {[%emt 0:01:37]} Bg4 {[%emt 0:03:56]} 12. Bg2 {[%emt 0:01:25]} Nxe2+ {[%emt 0:01:43]} 13. Nxe2 {[%emt 0:00:05]} exf4 {[%emt 0:00:07]} 14. gxf4 {[%emt 0:16:36]} Bxe2 {[%emt 0:03:59]} 15. Qxe2 {[%emt 0:00:04]} Bxf4+ {[%emt 0:00:05]} 16. Kb1 {[%emt 0:00:04]} Qe7 {[%emt 0:00:29]} 17. Qf2 {[%emt 0:19:32]} Be5 {[%emt 0:00:30]} 18. Bxe5 {[%emt 0:00:12]} dxe5 {[%emt 0:01:42]} 19. Rd3 {[%emt 0:03:52]} Rfd8 {[%emt 0:21:01]} 20. Rhd1 {[%emt 0:00:24]} Rxd3 {[%emt 0:00:22]} 21. Rxd3 {[%emt 0:02:05]} Nh5 {[%emt 0:03:08]} 22. Qd2 {[%emt 0:02:17]} Nf4 {[%emt 0:01:29]} 23. Rd7 {[%emt 0:02:09]} Qc5 {[%emt 0:02:52]} 24. Bf1 {[%emt 0:00:36]} b5 {[%emt 0:07:08]} 25. Qd6 {[%emt 0:05:49]} Ne6 {[%emt 0:19:34]} 26. Qxc5 {[%emt 0:05:57]} Nxc5 {[%emt 0:00:17]} 27. Rd5 {[%emt 0:00:07]} Nxe4 {[%emt 0:00:11]} 28. Kb2 {[%emt 0:00:03]} b4 {[%emt 0:05:04]} 29. Rxe5 {[%emt 0:02:00]} Nc3 {[%emt 0:00:04]} 30. a3 {[%emt 0:02:30]} a5 {[%emt 0:00:05]} 31. Re7 {[%emt 0:04:54]} Nd1+ {[%emt 0:06:16]} 32. Ka2 {[%emt 0:00:35]} Rd8 {[%emt 0:01:08]} 33. Bd3 {[%emt 0:01:43]} Nc3+ {[%emt 0:01:28]} 34. Kb2 {[%emt 0:00:02]} Nd1+ {[%emt 0:00:05]} 35. Ka2 {[%emt 0:00:02]} Nc3+ {[%emt 0:00:46]} 36. Kb2 {[%emt 0:00:02]} Nd5 {[%emt 0:00:23]} 37. Ra7 {[%emt 0:05:12]} bxa3+ {[%emt 0:00:05]} 38. Kxa3 {[%emt 0:00:03]} Nb4 {[%emt 0:00:03]} 39. Bc4 {[%emt 0:00:04]} Nxc2+ {[%emt 0:00:04]} 40. Ka4 {[%emt 0:00:02]} Rd2 {[%emt 0:03:03]} 41. Rxf7 {[%emt 0:02:39]} Ne3 {[%emt 0:00:01]} 42. Ra7+ {[%emt 0:01:46]} Kf8 {[%emt 0:01:04]} 43. Rf7+ {[%emt 0:00:59]} Ke8 {[%emt 0:00:30]} 44. Rxh7 {[%emt 0:00:12]} Ra2+ {[%emt 0:00:28]} 45. Kb5 {[%emt 0:00:01]} Nxc4 {[%emt 0:00:17]} 46. Kxc4 {[%emt 0:01:09]} 1/2-1/2

[Event "1000GM Spring GM-B 2024"]
[Site "New York"]
[Date "2024.03.30"]
[Round "6.4"]
[White "Nagy, Gabor"]
[Black "Furfine, Jacob"]
[Result "1/2-1/2"]
[ECO "D31"]
[WhiteElo "2436"]
[BlackElo "2343"]
[Annotator "TA"]
[PlyCount "68"]
[EventDate "2024.03.26"]
[EventType "tourn"]
[EventCountry "USA"]
[SourceTitle "playchess.com"]
[Source "ChessBase"]
[SourceQuality "1"]
[TimeControl "5400+30"]

{[%evp 9,68,26,32,23,46,0,0,5,8,-41,21,21,27,22,30,20,27,16,39,40,40,42,41,38,42,38,43,22,14,0,12,-7,-12,0,0,-14,-22,-19,0,0,0,0,0,0,0,0,0,0,0,0,0,-14,-14,-14,-14,-21,-18,-10,0,-8,-8]} 1. d4 {[%emt 0:00:07]} d5 {[%emt 0:00:05]} 2. c4 {[%emt 0:00:31]} e6 {[%emt 0:00:05]} 3. Nc3 {[%emt 0:00:57]} a6 {[%emt 0:00:04]} 4. cxd5 {[%emt 0:05:40]} exd5 {[%emt 0:00:07]} 5. Nf3 {[%emt 0:00:56]} c6 {[%emt 0:00:07]} 6. Bf4 {[%emt 0:04:46]} Bd6 {[%emt 0:00:05]} 7. Ne5 {[%emt 0:01:19]} Ne7 {[%emt 0:03:07]} 8. e3 {[%emt 0:00:54]} Ng6 {[%emt 0:03:56]} 9. Qh5 {[%emt 0:05:02]} (9. Nxg6 $11 {is superior.} hxg6 10. Bxd6 Qxd6 11. h3) 9... O-O {[%emt 0:04:11]} ({Better is} 9... Nxe5 $15 10. dxe5 g6) 10. Bd3 $11 {[%emt 0:00:36]} Nd7 {[%emt 0:10:30]} 11. Nxd7 $1 {[%emt 0:03:06]} Qxd7 {[%emt 0:00:05]} 12. Bg3 {[%emt 0:00:36]} Be7 {[%emt 0:02:25]} 13. Rc1 {[%emt 0:02:49]} a5 {[%emt 0:03:58][%cal Ba6a5,Ba5a4][%mdl 32]} 14. O-O {[%emt 0:05:32]} a4 {[%emt 0:00:45]} 15. a3 {[%emt 0:00:33]} f5 {[%emt 0:07:39]} 16. Qd1 {[%emt 0:02:08]} f4 {[%emt 0:07:02]} 17. exf4 {[%emt 0:01:13]} Nxf4 {[%emt 0:00:13]} 18. Bxf4 {[%emt 0:04:18]} Rxf4 {[%emt 0:00:13] The position is equal.} 19. Re1 {[%emt 0:00:18]} Rh4 {[%emt 0:06:52] Prevents Qh5.} (19... Bd6 $5) 20. Qe2 {[%emt 0:07:06]} Bd6 {[%emt 0:09:39]} 21. g3 $1 {[%emt 0:02:19]} Qh3 {[%emt 0:02:00]} 22. f4 {[%emt 0:01:55]} (22. gxh4 $2 {gets mated.} Qxh2+ 23. Kf1 Bh3#) (22. Qe8+ Bf8 23. gxh4 Qg4+ 24. Kf1 Qf3 $17) 22... Bg4 {[%emt 0:00:57]} 23. Qg2 {[%emt 0:01:55]} Bxf4 {[%emt 0:02:30]} (23... Qxg2+ {simplifies} 24. Kxg2 Bh3+ 25. Kg1 Rh6) 24. Rc2 {[%emt 0:02:10][%cal Oc3d5] [#] Hoping for Nxd5! Active counter play!} (24. gxh4 $2 {loses.} Be3+ 25. Rxe3 Qxe3+ 26. Qf2 Qxc1+ $19) 24... Rh6 {[%emt 0:12:34] Strongly threatening ...Bg5.} 25. Qxh3 {[%emt 0:06:25]} (25. Nxd5 {keeps more tension.} cxd5 26. Qxd5+ Be6 27. Rxe6 Rxe6 28. Re2) 25... Rxh3 {[%emt 0:00:03]} 26. Bf1 {[%emt 0:01:20][%cal Of1h3]} Bg5 {[%emt 0:00:23] A strong pair of Bishops.} 27. Bxh3 {[%emt 0:01:15]} Bxh3 {[%emt 0:00:50]} 28. Rf2 {[%emt 0:02:13]} b5 {[%emt 0:02:06]} 29. Na2 {[%emt 0:01:26]} Bf6 {[%emt 0:02:13]} 30. Rxf6 {[%emt 0:00:21]} gxf6 {[%emt 0:00:01]} 31. Nb4 {[%emt 0:00:15]} Rc8 {[%emt 0:01:53]} 32. Re7 {[%emt 0:01:31]} Bf5 {[%emt 0:00:20]} 33. Kf2 {[%emt 0:00:32]} Be4 {[%emt 0:00:34]} 34. Na6 {[%emt 0:02:44]} Kf8 {[%emt 0:00:38] Weighted Error Value: White=0.07 (flawless) /Black=0.08 (flawless) .  Mistake:       	White=1     	Black=1      Inaccurate:     	White=1     	---        OK:         	White=11    	Black=11     Best:        	White=3     	Black=1      Strong:       	White=2     	---} 1/2-1/2

[Event "1000GM Spring GM-B 2024"]
[Site "New York"]
[Date "2024.03.30"]
[Round "6.5"]
[White "Girish, A. Koushik"]
[Black "Mandizha, Farai"]
[Result "1-0"]
[ECO "A13"]
[WhiteElo "2499"]
[BlackElo "2380"]
[Annotator "TA"]
[PlyCount "85"]
[EventDate "2024.03.26"]
[EventType "tourn"]
[EventCountry "USA"]
[SourceTitle "playchess.com"]
[Source "ChessBase"]
[SourceQuality "1"]
[TimeControl "5400+30"]

{[%evp 9,85,6,9,13,9,8,2,8,19,13,48,27,39,20,56,43,70,21,55,56,46,43,46,22,35,16,13,20,75,81,56,65,59,70,46,54,57,72,292,103,349,341,383,379,500,497,476,447,485,465,650,637,641,633,812,804,760,763,1979,1763,1073,1044,920,882,911,894,912,872,910,906,868,781,867,838,1207,1184,4910,4902]} 1. Nf3 {[%emt 0:01:50]} Nf6 {[%emt 0:17:44]} 2. c4 {[%emt 0:01:19]} e6 {[%emt 0:01:48]} 3. b3 {[%emt 0:00:35]} d5 {[%emt 0:01:12]} 4. Bb2 {[%emt 0:00:05]} dxc4 {[%emt 0:02:52]} 5. bxc4 {[%emt 0:00:07]} b6 {[%emt 0:00:33]} 6. g3 {[%emt 0:01:20]} Bb7 {[%emt 0:00:11]} 7. Bg2 {[%emt 0:00:03]} Be7 {[%emt 0:00:42]} 8. O-O {[%emt 0:00:26] The position is equal.} O-O {[%emt 0:00:05]} 9. Qc2 {[%emt 0:01:10]} Nbd7 {[%emt 0:05:09]} 10. d3 {[%emt 0:00:46]} Re8 {[%emt 0:02:24]} 11. Nbd2 {[%emt 0:01:47]} Bf8 {[%emt 0:00:45]} 12. Rfe1 {[%emt 0:03:11]} Qb8 {[%emt 0:03:49]} 13. Bc3 {[%emt 0:02:01]} (13. e4 $14) 13... a5 {[%emt 0:00:29]} 14. e4 {[%emt 0:05:46]} e5 {[%emt 0:03:22]} 15. Nf1 {[%emt 0:01:51][%cal Bd2f1,Bf1e3,Be3f5,Bf5h6,Bh6f7,Bf7d6][%mdl 32]} Bb4 {[%emt 0:01:28]} 16. Ne3 {[%emt 0:01:20]} Qd8 {[%emt 0:02:57]} 17. Re2 {[%emt 0:10:41]} Bxc3 {[%emt 0:03:00]} 18. Qxc3 {[%emt 0:00:17]} c6 {[%emt 0:04:45]} (18... Qe7 $11 {remains equal.}) 19. Nf5 $16 {[%emt 0:07:38] White is more active.} Qc7 {[%emt 0:05:47] Prevents Nd6.} 20. Qd2 {[%emt 0:16:29]} g6 {[%emt 0:08:06]} 21. Nh6+ {[%emt 0:04:44]} Kg7 {[%emt 0:01:32] [#]} 22. Ng5 $1 {[%emt 0:03:53]} Re7 {[%emt 0:02:04]} 23. Nhxf7 {[%emt 0:00:12]} Nc5 $2 {[%emt 0:00:19] White leaves nothing to chance now.} (23... Rae8 $16) 24. f4 $2 {[%emt 0:00:35]} (24. d4 $18 {is the precise move to win.} h6 25. dxc5 hxg5 26. cxb6 (26. Nxg5 Rd8 $18) 26... Qxb6 27. Nxg5) 24... exf4 $2 {[%emt 0:05:11] [#]} (24... Rxf7 $16 {was called for.} 25. Nxf7 Qxf7) 25. e5 $1 $18 {[%emt 0:00:55]} Ng8 {[%emt 0:05:16]} 26. d4 {[%emt 0:01:24]} (26. gxf4 Rxf7 27. d4 Rd8 $18) ({Weaker is} 26. Qxf4 h6 $18 (26... Rxf7 $2 {loses.} 27. Qxf7+ Qxf7 28. Nxf7 $18)) 26... f3 {[%emt 0:00:02]} 27. Bxf3 {[%emt 0:02:39] White is clearly winning.} Ne6 {[%emt 0:00:22]} 28. Nd6 {[%emt 0:01:53]} Rf8 {[%emt 0:01:58]} 29. Rf1 {[%emt 0:00:19]} (29. Nxe6+ Rxe6 30. Rf1 Ba6) 29... Ba6 {[%emt 0:05:23]} 30. Ref2 {[%emt 0:01:23]} Nxg5 {[%emt 0:03:24]} 31. Qxg5 {[%emt 0:00:04]} h6 {[%emt 0:00:08] Black is weak on the light squares} 32. Qh4 {[%emt 0:09:24]} Rd8 {[%emt 0:00:48]} 33. Be2 {[%emt 0:00:54][%cal Bf3e2,Be2a6,Ba6c8,Bc8g4,Bg4h5,Bh5f7][%mdl 32]} g5 {[%emt 0:07:35]} 34. Qh5 {[%emt 0:01:27] White threatens Rf7+ and mate.} Rxd6 {[%emt 0:00:20]} 35. exd6 {[%emt 0:00:07]} Qxd6 {[%emt 0:00:06] [#]} 36. c5 $1 {[%emt 0:00:31]} Qxd4 {[%emt 0:00:05]} 37. Bxa6 {[%emt 0:00:10]} b5 {[%emt 0:00:13]} 38. Qf3 {[%emt 0:01:12]} Qxc5 {[%emt 0:00:14]} 39. Bc8 {[%emt 0:00:43]} Kh8 {[%emt 0:00:24]} 40. Qf8 {[%emt 0:00:50]} Qe3 {[%emt 0:00:20] Dodges Be6} 41. Bg4 {[%emt 0:01:10]} Qd4 {[%emt 0:00:30]} 42. Bh5 {[%emt 0:00:31] Bf7 is the strong threat.} c5 {[%emt 0:01:30]} 43. Bf7 {[%emt 0:00:31] Weighted Error Value: White=0.13 (very precise) /Black=0.51.  Loses game:     	---       	Black=2      Missed win:     	White=1     	---        Mistake:       	White=1     	Black=1      Inaccurate:     	---       	Black=6      OK:         	White=13    	Black=12     Best:        	---       	Black=1      Strong:       	White=1     	---} 1-0

[Event "1000GM Spring GM-B 2024"]
[Site "New York"]
[Date "2024.03.31"]
[Round "7.1"]
[White "Mandizha, Farai"]
[Black "Eidelman, Gabriel"]
[Result "1/2-1/2"]
[ECO "D37"]
[WhiteElo "2380"]
[BlackElo "2374"]
[Annotator "RC"]
[PlyCount "108"]
[EventDate "2024.03.26"]
[EventType "tourn"]
[EventCountry "USA"]
[SourceTitle "playchess.com"]
[Source "ChessBase"]
[SourceQuality "1"]
[TimeControl "5400+30"]

1. d4 {[%emt 0:31:24]} d5 {[%emt 0:00:09]} 2. c4 {[%emt 0:00:05]} e6 {[%emt 0:00:07]} 3. Nc3 {[%emt 0:00:14]} Nf6 {[%emt 0:01:09]} 4. Nf3 {[%emt 0:00:21]} a6 {[%emt 0:00:16]} 5. c5 {[%emt 0:03:35]} b6 {[%emt 0:00:10]} 6. cxb6 {[%emt 0:00:53]} c5 {[%emt 0:00:06]} 7. Qb3 {[%emt 0:04:16]} Bd7 {[%emt 0:02:59]} 8. dxc5 {[%emt 0:07:37]} Bxc5 {[%emt 0:00:12]} 9. Na4 {[%emt 0:00:08]} Bxa4 {[%emt 0:03:19]} 10. Qxa4+ {[%emt 0:00:04]} Qd7 {[%emt 0:04:45]} 11. Qxd7+ {[%emt 0:04:21]} Nbxd7 {[%emt 0:02:47]} 12. b7 {[%emt 0:00:13]} Ra7 {[%emt 0:00:29]} 13. e3 {[%emt 0:00:11]} O-O {[%emt 0:03:11]} 14. Nd4 {[%emt 0:11:19]} a5 {[%emt 0:17:51]} 15. Be2 {[%emt 0:13:27]} Rxb7 {[%emt 0:07:16]} 16. O-O {[%emt 0:00:14]} a4 {[%emt 0:03:54]} 17. Rd1 {[%emt 0:03:14]} Ra8 {[%emt 0:03:10]} 18. f3 {[%emt 0:05:00]} Rb6 {[%emt 0:09:14]} 19. Nb5 {[%emt 0:02:16]} Ra5 {[%emt 0:07:43]} 20. Na3 {[%emt 0:02:07]} Kf8 {[%emt 0:03:17]} 21. Kf1 {[%emt 0:01:43]} Ra8 {[%emt 0:03:59]} 22. Nb5 {[%emt 0:00:45]} Ne8 {[%emt 0:01:46]} 23. e4 {[%emt 0:00:48]} Ndf6 {[%emt 0:00:26]} 24. e5 {[%emt 0:04:11]} Nd7 {[%emt 0:00:44]} 25. f4 {[%emt 0:00:18]} f6 {[%emt 0:01:31]} 26. exf6 {[%emt 0:00:24]} Ndxf6 {[%emt 0:00:47]} 27. g3 {[%emt 0:03:14]} Ke7 {[%emt 0:00:24]} 28. Bd2 {[%emt 0:00:48]} Ne4 {[%emt 0:00:53]} 29. Be1 {[%emt 0:00:20]} N8d6 {[%emt 0:02:26]} 30. Nxd6 {[%emt 0:00:34]} Bxd6 {[%emt 0:00:36]} 31. b3 {[%emt 0:00:48]} axb3 {[%emt 0:00:44]} 32. axb3 {[%emt 0:00:02]} Rxa1 {[%emt 0:00:28]} 33. Rxa1 {[%emt 0:00:01]} Rxb3 {[%emt 0:00:14]} 34. Ra7+ {[%emt 0:00:27]} Kf6 {[%emt 0:00:21]} 35. Ba5 {[%emt 0:00:44]} Bc5 {[%emt 0:06:28]} 36. Bd8+ {[%emt 0:01:18]} Kg6 {[%emt 0:00:03]} 37. Rd7 {[%emt 0:00:56]} h5 {[%emt 0:05:39]} 38. Ba5 {[%emt 0:00:39]} h4 {[%emt 0:01:56]} 39. gxh4 {[%emt 0:00:07]} Ra3 {[%emt 0:01:12]} 40. h5+ {[%emt 0:00:36]} Kh7 {[%emt 0:04:42]} 41. Bd8 {[%emt 0:00:32]} Ra1+ {[%emt 0:01:05]} 42. Kg2 {[%emt 0:00:02]} Rg1+ {[%emt 0:00:12]} 43. Kh3 {[%emt 0:00:04]} Be3 {[%emt 0:01:29]} 44. Bg5 {[%emt 0:01:04]} Nxg5+ {[%emt 0:01:03]} 45. fxg5 {[%emt 0:00:03]} Bxg5 {[%emt 0:01:16]} 46. Rd6 {[%emt 0:00:31]} e5 {[%emt 0:00:26]} 47. Rxd5 {[%emt 0:00:02]} Bf6 {[%emt 0:00:31]} 48. Rd3 {[%emt 0:00:56]} Re1 {[%emt 0:00:05]} 49. Re3 {[%emt 0:00:14]} Kh6 {[%emt 0:00:06]} 50. Kg2 {[%emt 0:00:40]} Kg5 {[%emt 0:01:15]} 51. Kf2 {[%emt 0:01:14]} Ra1 {[%emt 0:00:11]} 52. Rg3+ {[%emt 0:00:42]} Kf5 {[%emt 0:00:23]} 53. Rf3+ {[%emt 0:00:07]} Ke4 {[%emt 0:00:58]} 54. Re3+ {[%emt 0:00:08]} Kf4 {[%emt 0:00:31]} 1/2-1/2